fUSD/lending_fUSD_20240805
["ID","MTS","AMOUNT","RATE_DAILY","PERIOD"]
[334225929,1722844419606,-500.0,0.00044931,60]
[334225930,1722844419652,-438.10014923,0.00044931,60]
[334225931,1722844419691,-500.0,0.00044931,60]
[334225932,1722844419729,-3556.54,0.00044931,60]
[334225933,1722844419767,-788.5,0.00044931,60]
[334225934,1722844419806,-500.0,0.00044931,60]
[334225935,1722844419850,-500.0,0.00044931,60]
[334225936,1722844419910,-500.0,0.00044931,60]
[334225937,1722844419971,-521.869583,0.00044931,60]
[334225938,1722844420023,-500.0,0.00044931,60]
[334225939,1722844420074,-738.52,0.00044931,60]
[334225940,1722844420126,-781.04,0.00044931,60]
[334225941,1722844420174,-2197.19,0.00044931,60]
[334225942,1722844420222,-500.0,0.00044931,60]
[334225943,1722844420269,-500.0,0.00044931,60]
[334225944,1722844420316,-500.0,0.00044931,60]
[334225945,1722844420359,-500.0,0.00044931,60]
[334225946,1722844420413,-500.0,0.00044931,60]
[334225947,1722844420461,-500.0,0.00044931,60]
[334225948,1722844420508,-861.54,0.00044931,60]
[334225949,1722844420554,-629.51,0.00044931,60]
[334225950,1722844420600,-500.0,0.00044931,60]
[334225951,1722844420654,-500.0,0.00044931,60]
[334225952,1722844420698,-500.0,0.00044931,60]
[334225953,1722844420744,-2019.2,0.00044931,60]
[334225954,1722844420789,-1081.51,0.00044931,60]
[334225955,1722844420836,-515.65353746,0.00044931,60]
[334225956,1722844420884,-500.0,0.00044931,60]
[334225957,1722844420932,-500.0,0.00044931,60]
[334225958,1722844420980,-3091.06,0.00044931,60]
[334225959,1722844421028,-504.79611545,0.00044931,60]
[334225960,1722844421075,-1926.55,0.00044931,60]
[334225961,1722844421130,-500.0,0.00044931,60]
[334225962,1722844421177,-500.0,0.00044931,60]
[334225963,1722844421225,-500.0,0.00044931,60]
[334225964,1722844421272,-500.0,0.00044931,60]
[334225965,1722844421317,-996.23,0.00044931,60]
[334225966,1722844421375,-500.0,0.00044931,60]
[334225967,1722844421425,-500.0,0.00044931,60]
[334225968,1722844421476,-500.0,0.00044931,60]
[334225969,1722844421524,-1073.18,0.00044931,60]
[334225970,1722844421575,-3342.17,0.00044931,60]
[334225971,1722844421628,-2364.16,0.00044931,60]
[334225972,1722844421680,-500.0,0.00044931,60]
[334225973,1722844421735,-500.0,0.00044931,60]
[334225974,1722844421786,-871.78,0.00044931,60]
[334225975,1722844421838,-500.0,0.00044931,60]
[334225976,1722844421884,-500.0,0.00044931,60]
[334225977,1722844421931,-500.0,0.00044931,60]
[334225978,1722844421979,-1176.28,0.00044931,60]
[334225979,1722844422028,-500.0,0.00044931,60]
[334225980,1722844422076,-2932.21,0.00044931,60]
[334225981,1722844422128,-500.0,0.00044931,60]
[334225982,1722844422176,-500.0,0.00044931,60]
[334225983,1722844422221,-500.0,0.00044931,60]
[334225984,1722844422266,-500.0,0.00044931,60]
[334225985,1722844422310,-1369.01,0.00044931,60]
[334225986,1722844422354,-500.0,0.00044931,60]
[334225987,1722844422406,-962.6,0.00044931,60]
[334225988,1722844422452,-551.05,0.00044931,60]
[334225989,1722844422498,-1590.64,0.00044931,60]
[334225990,1722844422542,-500.0,0.00044931,60]
[334225991,1722844422586,-500.0,0.00044931,60]
[334225992,1722844422627,-2220.92,0.00044931,60]
[334225993,1722844422670,-1744.69,0.00044931,60]
[334225994,1722844422712,-1678.91,0.00044931,60]
[334225995,1722844422756,-1416.08,0.00044931,60]
[334225996,1722844422800,-929.8,0.00044931,60]
[334225997,1722844422842,-697.66,0.00044931,60]
[334225998,1722844422884,-1493.19,0.00044931,60]
[334225999,1722844422925,-500.0,0.00044931,60]
[334226000,1722844422968,-3024.71,0.00044931,60]
[334226001,1722844423011,-996.96,0.00044931,60]
[334226002,1722844423058,-744.97,0.00044931,60]
[334226003,1722844423101,-500.0,0.00044931,60]
[334226004,1722844423151,-500.0,0.00044931,60]
[334226005,1722844423193,-2398.98,0.00044931,60]
[334226006,1722844423233,-2176.07,0.00044931,60]
[334226007,1722844423274,-552.07,0.00044931,60]
[334226008,1722844423316,-3676.17,0.00044931,60]
[334226009,1722844423358,-500.0,0.00044931,60]
[334226010,1722844423407,-2763.91,0.00044931,60]
[334226011,1722844423452,-500.0,0.00044931,60]
[334226012,1722844423495,-584.29,0.00044931,60]
[334226013,1722844423536,-500.0,0.00044931,60]
[334226014,1722844423578,-1002.08,0.00044931,60]
[334226015,1722844423626,-750.01,0.00044931,60]
[334226016,1722844423667,-1538.08,0.00044931,60]
[334226017,1722844423709,-500.0,0.00044931,60]
[334226018,1722844423753,-500.0,0.00044931,60]
[334226019,1722844423796,-1448.11,0.00044931,60]
[334226020,1722844423839,-500.0,0.00044931,60]
[334226021,1722844423885,-2587.1,0.00044931,60]
[334226022,1722844423930,-500.0,0.00044931,60]
[334226023,1722844423976,-500.0,0.00044931,60]
[334226024,1722844424025,-765.91,0.00044931,60]
[334226025,1722844424302,-500.0,0.00044931,60]
[334226026,1722844424346,-3064.52,0.00044931,60]
[334226027,1722844424391,-500.0,0.00044931,60]
[334226028,1722844424437,-1557.46,0.00044931,60]
[334226029,1722844424483,-533.48,0.00044931,60]
[334226030,1722844424529,-500.0,0.00044931,60]
[334226031,1722844424573,-810.02,0.00044931,60]
[334226032,1722844424621,-500.0,0.00044931,60]
[334226033,1722844424666,-1020.46,0.00044931,60]
[334226034,1722844424710,-1149.76,0.00044931,60]
[334226035,1722844424754,-1605.85,0.00044931,60]
[334226036,1722844424799,-3579.5,0.00044931,60]
[334226037,1722844424844,-956.58,0.00044931,60]
[334226038,1722844424891,-500.0,0.00044931,60]
[334226039,1722844424937,-2490.57,0.00044931,60]
[334226040,1722844424983,-500.0,0.00044931,60]
[334226041,1722844425030,-500.0,0.00044931,60]
[334226042,1722844425076,-500.0,0.00044931,60]
[334226043,1722844425127,-1276.34,0.00044931,60]
[334226044,1722844425171,-500.0,0.00044931,60]
[334226045,1722844425214,-500.0,0.00044931,60]
[334226046,1722844425258,-1139.97,0.00044931,60]
[334226047,1722844425303,-581.94,0.00044931,60]
[334226048,1722844425345,-544.37,0.00044931,60]
[334226049,1722844425396,-500.0,0.00044931,60]
[334226050,1722844425439,-1206.85,0.00044931,60]
[334226051,1722844425480,-500.0,0.00044931,60]
[334226052,1722844425523,-3091.48,0.00044931,60]
[334226053,1722844425566,-969.26,0.00044931,60]
[334226054,1722844425606,-2684.86,0.00044931,60]
[334226055,1722844425653,-1258.7,0.00044931,60]
[334226056,1722844425692,-1112.49,0.00044931,60]
[334226057,1722844425731,-653.32,0.00044931,60]
[334226058,1722844425770,-500.0,0.00044931,60]
[334226059,1722844425810,-818.34,0.00044931,60]
[334226060,1722844425854,-500.0,0.00044931,60]
[334226061,1722844425903,-1503.97,0.00044931,60]
[334226062,1722844425944,-782.47,0.00044931,60]
[334226063,1722844425988,-1117.12,0.00044931,60]
[334226064,1722844426032,-500.0,0.00044931,60]
[334226065,1722844426077,-500.0,0.00044931,60]
[334226066,1722844426128,-1479.62,0.00044931,60]
[334226067,1722844426172,-500.0,0.00044931,60]
[334226068,1722844426224,-500.0,0.00044931,60]
[334226069,1722844426270,-500.0,0.00044931,60]
[334226070,1722844426314,-500.0,0.00044931,60]
[334226071,1722844426361,-500.0,0.00044931,60]
[334226072,1722844426416,-500.0,0.00044931,60]
[334226073,1722844426465,-500.0,0.00044931,60]
[334226074,1722844426516,-4566.79,0.00044931,60]
[334226075,1722844426565,-500.0,0.00044931,60]
[334226076,1722844426610,-665.55,0.00044931,60]
[334226077,1722844426662,-500.0,0.00044931,60]
[334226078,1722844426706,-1862.02,0.00044931,60]
[334226079,1722844426748,-500.0,0.00044931,60]
[334226080,1722844426791,-500.0,0.00044931,60]
[334226081,1722844426835,-1106.04,0.00044931,60]
[334226082,1722844426880,-910.91,0.00044931,60]
[334226083,1722844426925,-500.0,0.00044931,60]
[334226084,1722844426973,-844.82,0.00044931,60]
[334226085,1722844427018,-500.0,0.00044931,60]
[334226086,1722844427064,-1233.92,0.00044931,60]
[334226087,1722844427109,-500.0,0.00044931,60]
[334226088,1722844427163,-500.0,0.00044931,60]
[334226089,1722844427209,-1817.05,0.00044931,60]
[334226090,1722844427255,-663.4,0.00044931,60]
[334226091,1722844427299,-940.29,0.00044931,60]
[334226092,1722844427339,-500.0,0.00044931,60]
[334226093,1722844427380,-2881.09,0.00044931,60]
[334226094,1722844427423,-1193.36,0.00044931,60]
[334226095,1722844427466,-500.0,0.00044931,60]
[334226096,1722844427508,-1889.39,0.00044931,60]
[334226097,1722844427550,-4031.21,0.00044931,60]
[334226098,1722844427593,-505.30494403,0.00044931,60]
[334226099,1722844427635,-575.03,0.00044931,60]
[334226100,1722844427678,-889.77,0.00044931,60]
[334226101,1722844427722,-1021.91,0.00044931,60]
[334226102,1722844427766,-1041.73,0.00044931,60]
[334226103,1722844427810,-2391.75,0.00044931,60]
[334226104,1722844427854,-500.0,0.00044931,60]
[334226105,1722844427906,-1481.83,0.00044931,60]
[334226106,1722844427951,-1422.39,0.00044931,60]
[334226107,1722844427999,-812.97,0.00044931,60]
[334226108,1722844428046,-500.0,0.00044931,60]
[334226109,1722844428097,-1178.96,0.00044931,60]
[334226110,1722844428163,-500.0,0.00044931,60]
[334226111,1722844428221,-1524.82,0.00044931,60]
[334226112,1722844428271,-500.0,0.00044931,60]
[334226113,1722844428320,-500.0,0.00044931,60]
[334226114,1722844428372,-500.0,0.00044931,60]
[334226115,1722844428420,-500.0,0.00044931,60]
[334226116,1722844428472,-1094.96,0.00044931,60]
[334226117,1722844428524,-2487.48,0.00044931,60]
[334226118,1722844428573,-789.42,0.00044931,60]
[334226119,1722844428624,-1973.1,0.00044931,60]
[334226120,1722844428673,-989.26,0.00044931,60]
[334226121,1722844428720,-500.0,0.00044931,60]
[334226122,1722844428769,-500.0,0.00044931,60]
[334226123,1722844428818,-500.0,0.00044931,60]
[334226124,1722844428868,-1515.92,0.00044931,60]
[334226125,1722844428917,-454.63449281,0.00044931,60]
[334226126,1722844428967,-2056.28,0.00044931,60]
[334226127,1722844429015,-3337.89,0.00044931,60]
[334226128,1722844429063,-1172.06,0.00044931,60]
[334226129,1722844429335,-371.63647982,0.00044931,60]
[334226130,1722844429385,-500.0,0.00044931,60]
[334226131,1722844429434,-2779.3,0.00044931,60]
[334226132,1722844429484,-979.35,0.00044931,60]
[334226133,1722844429530,-829.4,0.00044931,60]
[334226134,1722844429576,-4474.14,0.00044931,60]
[334226135,1722844429625,-795.18,0.00044931,60]
[334226136,1722844429670,-1288.51,0.00044931,60]
[334226137,1722844429714,-772.19,0.00044931,60]
[334226138,1722844429760,-1615.12,0.00044931,60]
[334226139,1722844429806,-1472.89,0.00044931,60]
[334226140,1722844429852,-2513.59,0.00044931,60]
[334226141,1722844429906,-500.0,0.00044931,60]
[334226142,1722844429950,-683.57,0.00044931,60]
[334226143,1722844429996,-1121.51,0.00044931,60]
[334226144,1722844430042,-586.11,0.00044931,60]
[334226145,1722844430087,-500.0,0.00044931,60]
[334226146,1722844430132,-3536.48,0.00044931,60]
[334226147,1722844430182,-500.0,0.00044931,60]
[334226148,1722844430227,-677.33,0.00044931,60]
[334226149,1722844430271,-500.0,0.00044931,60]
[334226150,1722844430314,-500.0,0.00044931,60]
[334226151,1722844430357,-500.0,0.00044931,60]
[334226152,1722844430407,-500.0,0.00044931,60]
[334226153,1722844430452,-500.0,0.00044931,60]
[334226154,1722844430503,-500.0,0.00044931,60]
[334226155,1722844430550,-534.3,0.00044931,60]
[334226156,1722844430608,-500.0,0.00044931,60]
[334226157,1722844430666,-500.0,0.00044931,60]
[334226158,1722844430714,-576.41,0.00044931,60]
[334226159,1722844430762,-500.0,0.00044931,60]
[334226160,1722844430812,-506.46349148,0.00044931,60]
[334226161,1722844430861,-500.0,0.00044931,60]
[334226162,1722844430924,-500.0,0.00044931,60]
[334226163,1722844430973,-1009.49,0.00044931,60]
[334226164,1722844431023,-2105.43,0.00044931,60]
[334226165,1722844431074,-500.0,0.00044931,60]
[334226166,1722844431131,-500.0,0.00044931,60]
[334226167,1722844431184,-500.0,0.00044931,60]
[334226168,1722844431235,-585.87,0.00044931,60]
[334226169,1722844431282,-1492.65,0.00044931,60]
[334226170,1722844431330,-1286.6,0.00044931,60]
[334226171,1722844431378,-1984.69,0.00044931,60]
[334226172,1722844431428,-500.0,0.00044931,60]
[334226173,1722844431479,-500.0,0.00044931,60]
[334226174,1722844431529,-500.0,0.00044931,60]
[334226175,1722844431578,-1639.94,0.00044931,60]
[334226176,1722844431628,-2105.98,0.00044931,60]
[334226177,1722844431677,-1249.4,0.00044931,60]
[334226178,1722844431726,-500.0,0.00044931,60]
[334226179,1722844431774,-962.27,0.00044931,60]
[334226180,1722844431821,-2483.31,0.00044931,60]
[334226181,1722844431871,-1643.1,0.00044931,60]
[334226182,1722844431924,-1511.13,0.00044931,60]
[334226183,1722844431974,-637.90769716,0.00044931,60]
[334226184,1722844432025,-2956.4,0.00044931,60]
[334226185,1722844432074,-1170.05,0.00044931,60]
[334226186,1722844432124,-500.0,0.00044931,60]
[334226187,1722844432171,-1504.27,0.00044931,60]
[334226188,1722844432220,-754.33,0.00044931,60]
[334226189,1722844432264,-1298.6,0.00044931,60]
[334226190,1722844432309,-500.0,0.00044931,60]
[334226191,1722844432353,-500.0,0.00044931,60]
[334226192,1722844432400,-500.0,0.00044931,60]
[334226193,1722844432447,-722.49,0.00044931,60]
[334226194,1722844432494,-3521.35,0.00044931,60]
[334226195,1722844432536,-1043.13,0.00044931,60]
[334226196,1722844432579,-500.0,0.00044931,60]
[334226197,1722844432624,-936.69,0.00044931,60]
[334226198,1722844432667,-500.0,0.00044931,60]
[334226199,1722844432712,-2164.97,0.00044931,60]
[334226200,1722844432759,-504.07,0.00044931,60]
[334226201,1722844432803,-1861.15,0.00044931,60]
[334226202,1722844432846,-500.0,0.00044931,60]
[334226203,1722844432892,-4515.22,0.00044931,60]
[334226204,1722844432936,-500.0,0.00044931,60]
[334226205,1722844432982,-500.0,0.00044931,60]
[334226206,1722844433026,-1258.84,0.00044931,60]
[334226207,1722844433068,-500.0,0.00044931,60]
[334226208,1722844433112,-859.54,0.00044931,60]
[334226209,1722844433158,-1478.25,0.00044931,60]
[334226210,1722844433201,-513.56,0.00044931,60]
[334226211,1722844433243,-970.46,0.00044931,60]
[334226212,1722844433285,-776.86,0.00044931,60]
[334226213,1722844433329,-585.63,0.00044931,60]
[334226214,1722844433374,-500.0,0.00044931,60]
[334226215,1722844433417,-936.94,0.00044931,60]
[334226216,1722844433463,-705.37,0.00044931,60]
[334226217,1722844433506,-1195.43,0.00044931,60]
[334226218,1722844433549,-1968.5,0.00044931,60]
[334226219,1722844433593,-227.89077292,0.00044931,60]
[334226220,1722844433638,-2221.06,0.00044931,60]
[334226221,1722844433682,-1252.99,0.00044931,60]
[334226222,1722844433729,-3474.81,0.00044931,60]
[334226223,1722844433776,-1495.03,0.00044931,60]
[334226224,1722844433824,-631.95,0.00044931,60]
[334226225,1722844433874,-1500.6,0.00044931,60]
[334226226,1722844433921,-1569.23,0.00044931,60]
[334226227,1722844433967,-3329.16,0.00044931,60]
[334226228,1722844434012,-500.0,0.00044931,60]
[334226229,1722844434058,-500.0,0.00044931,60]
[334226230,1722844434102,-500.0,0.00044931,60]
[334226231,1722844434148,-806.66,0.00044931,60]
[334226232,1722844434414,-500.0,0.00044931,60]
[334226233,1722844434462,-3499.13,0.00044931,60]
[334226234,1722844434505,-286.66352653,0.00044931,60]
[334226235,1722844434546,-500.0,0.00044931,60]
[334226236,1722844434587,-500.0,0.00044931,60]
[334226237,1722844434628,-3090.85,0.00044931,60]
[334226238,1722844434669,-500.0,0.00044931,60]
[334226239,1722844434709,-1026.49,0.00044931,60]
[334226240,1722844434752,-2889.59,0.00044931,60]
[334226241,1722844434795,-500.0,0.00044931,60]
[334226242,1722844434836,-500.0,0.00044931,60]
[334226243,1722844434878,-3582.16,0.00044931,60]
[334226244,1722844434923,-1190.05,0.00044931,60]
[334226245,1722844434968,-804.29,0.00044931,60]
[334226246,1722844435012,-648.35,0.00044931,60]
[334226247,1722844435058,-176.65395948,0.00044931,60]
[334226248,1722844435105,-1012.27,0.00044931,60]
[334226249,1722844435159,-2656.27,0.00044931,60]
[334226250,1722844435203,-3334.46,0.00044931,60]
[334226251,1722844435245,-1816.19,0.00044931,60]
[334226252,1722844435285,-500.0,0.00044931,60]
[334226253,1722844435325,-500.0,0.00044931,60]
[334226254,1722844435363,-1419.38,0.00044931,60]
[334226255,1722844435402,-1205.65,0.00044931,60]
[334226256,1722844435443,-960.05,0.00044931,60]
[334226257,1722844435484,-2829.69,0.00044931,60]
[334226258,1722844435524,-1249.16,0.00044931,60]
[334226259,1722844435564,-500.0,0.00044931,60]
[334226260,1722844435603,-1429.17,0.00044931,60]
[334226261,1722844435643,-2102.16,0.00044931,60]
[334226262,1722844435684,-500.0,0.00044931,60]
[334226263,1722844435724,-500.0,0.00044931,60]
[334226264,1722844435766,-1239.51,0.00044931,60]
[334226265,1722844435809,-1591.86,0.00044931,60]
[334226266,1722844435850,-621.71,0.00044931,60]
[334226267,1722844435890,-2254.38,0.00044931,60]
[334226268,1722844435931,-602.16,0.00044931,60]
[334226269,1722844435972,-540.84,0.00044931,60]
[334226270,1722844436013,-568.86,0.00044931,60]
[334226271,1722844436054,-500.0,0.00044931,60]
[334226272,1722844436096,-1381.56,0.00044931,60]
[334226273,1722844436140,-522.42912868,0.00044931,60]
[334226274,1722844436185,-990.25,0.00044931,60]
[334226275,1722844436227,-627.42,0.00044931,60]
[334226276,1722844436269,-3059.77,0.00044931,60]
[334226277,1722844436311,-1387.53,0.00044931,60]
[334226278,1722844436352,-500.0,0.00044931,60]
[334226279,1722844436394,-1284.45,0.00044931,60]
[334226280,1722844436440,-2164.6,0.00044931,60]
[334226281,1722844436485,-1060.48,0.00044931,60]
[334226282,1722844436530,-1495.86,0.00044931,60]
[334226283,1722844436573,-780.62,0.00044931,60]
[334226284,1722844436616,-500.0,0.00044931,60]
[334226285,1722844436659,-4606.13,0.00044931,60]
[334226286,1722844436706,-579.6,0.00044931,60]
[334226287,1722844436752,-738.94,0.00044931,60]
[334226288,1722844436803,-500.0,0.00044931,60]
[334226289,1722844436852,-519.54,0.00044931,60]
[334226290,1722844436902,-648.7,0.00044931,60]
[334226291,1722844436954,-1716.06,0.00044931,60]
[334226292,1722844437004,-1963.93,0.00044931,60]
[334226293,1722844437057,-1163.31,0.00044931,60]
[334226294,1722844437107,-3883.3,0.00044931,60]
[334226295,1722844437154,-900.66,0.00044931,60]
[334226296,1722844437201,-1444.52,0.00044931,60]
[334226297,1722844437246,-1825.76,0.00044931,60]
[334226298,1722844437288,-500.0,0.00044931,60]
[334226299,1722844437333,-991.12,0.00044931,60]
[334226300,1722844437377,-1271.73,0.00044931,60]
[334226301,1722844437421,-500.0,0.00044931,60]
[334226302,1722844437465,-500.0,0.00044931,60]
[334226303,1722844437509,-776.44,0.00044931,60]
[334226304,1722844437550,-557.25,0.00044931,60]
[334226305,1722844437590,-500.0,0.00044931,60]
[334226306,1722844437640,-500.0,0.00044931,60]
[334226307,1722844437682,-781.71,0.00044931,60]
[334226308,1722844437724,-2495.7,0.00044931,60]
[334226309,1722844437766,-2245.48,0.00044931,60]
[334226310,1722844437806,-3163.86,0.00044931,60]
[334226311,1722844437846,-500.0,0.00044931,60]
[334226312,1722844437887,-1479.42,0.00044931,60]
[334226313,1722844437928,-2335.18,0.00044931,60]
[334226314,1722844437969,-500.0,0.00044931,60]
[334226315,1722844438012,-2512.24,0.00044931,60]
[334226316,1722844438053,-500.0,0.00044931,60]
[334226317,1722844438095,-500.0,0.00044931,60]
[334226318,1722844438136,-1318.12,0.00044931,60]
[334226319,1722844438178,-500.0,0.00044931,60]
[334226320,1722844438216,-2546.71,0.00044931,60]
[334226321,1722844438254,-2643.24,0.00044931,60]
[334226322,1722844438293,-500.0,0.00044931,60]
[334226323,1722844438331,-3011.57,0.00044931,60]
[334226324,1722844438368,-827.48,0.00044931,60]
[334226325,1722844438406,-500.0,0.00044931,60]
[334226326,1722844438445,-10089.31,0.00044931,60]
[334226327,1722844438484,-500.0,0.00044931,60]
[334226328,1722844438521,-500.0,0.00044931,60]
[334226329,1722844438557,-500.0,0.00044931,60]
[334226330,1722844438594,-500.0,0.00044931,60]
[334226331,1722844438630,-628.47465428,0.00044931,60]
[334226332,1722844438667,-2761.8,0.00044931,60]
[334226333,1722844438704,-875.89,0.00044931,60]
[334226334,1722844438743,-213.39080506,0.00044931,60]
[334226335,1722844438782,-909.27,0.00044931,60]
[334226336,1722844438821,-1834.13,0.00044931,60]
[334226337,1722844439083,-500.0,0.00044931,60]
[334226338,1722844439127,-500.0,0.00044931,60]
[334226339,1722844439170,-500.0,0.00044931,60]
[334226340,1722844439211,-1594.18,0.00044931,60]
[334226341,1722844439255,-904.65,0.00044931,60]
[334226342,1722844439299,-500.0,0.00044931,60]
[334226343,1722844439341,-500.0,0.00044931,60]
[334226344,1722844439382,-1166.66,0.00044931,60]
[334226345,1722844439422,-500.0,0.00044931,60]
[334226346,1722844439463,-500.0,0.00044931,60]
[334226347,1722844439503,-3601.46,0.00044931,60]
[334226348,1722844439546,-927.02,0.00044931,60]
[334226349,1722844439588,-5377.57,0.00044931,60]
[334226350,1722844439628,-23612.73,0.00044931,60]
[334226351,1722844439667,-500.0,0.00044931,60]
[334226352,1722844439707,-500.0,0.00044931,60]
[334226353,1722844439748,-2267.85,0.00044931,60]
[334226354,1722844439787,-1760.51,0.00044931,60]
[334226355,1722844439826,-2589.98,0.00044931,60]
[334226356,1722844439867,-856.68,0.00044931,60]
[334226357,1722844439913,-3723.72,0.00044931,60]
[334226358,1722844439958,-2428.43,0.00044931,60]
[334226359,1722844440002,-6443.39,0.00044931,60]
[334226360,1722844440049,-844.83,0.00044931,60]
[334226361,1722844440096,-500.0,0.00044931,60]
[334226362,1722844440146,-1239.85,0.00044931,60]
[334226363,1722844440197,-500.0,0.00044931,60]
[334226364,1722844440243,-2135.68,0.00044931,60]
[334226365,1722844440294,-7781.8,0.00044931,60]
[334226366,1722844440340,-500.0,0.00044931,60]
[334226367,1722844440386,-1790.38,0.00044931,60]
[334226368,1722844440431,-500.0,0.00044931,60]
[334226369,1722844440481,-3762.63,0.00044931,60]
[334226370,1722844440528,-12434.34,0.00044931,60]
[334226371,1722844440575,-500.0,0.00044931,60]
[334226372,1722844440621,-500.0,0.00044931,60]
[334226373,1722844440685,-29175.13,0.00044931,60]
[334226374,1722844440731,-2229.68,0.00044931,60]
[334226375,1722844440776,-3079.71,0.00044931,60]
[334226376,1722844440822,-2685.43,0.00044931,60]
[334226377,1722844440867,-12156.11,0.00044931,60]
[334226378,1722844440915,-676.45,0.00044931,60]
[334226379,1722844440963,-500.0,0.00044931,60]
[334226380,1722844441011,-5533.89,0.00044931,60]
[334226381,1722844441060,-500.0,0.00044931,60]
[334226382,1722844441110,-1147.24,0.00044931,60]
[334226383,1722844441157,-2942.99,0.00044931,60]
[334226384,1722844441203,-500.0,0.00044931,60]
[334226385,1722844441250,-500.0,0.00044931,60]
[334226386,1722844441297,-500.0,0.00044931,60]
[334226387,1722844441343,-966.49,0.00044931,60]
[334226388,1722844441390,-7052.9,0.00044931,60]
[334226389,1722844441436,-500.0,0.00044931,60]
[334226390,1722844441483,-1533.46,0.00044931,60]
[334226391,1722844441529,-1702.7,0.00044931,60]
[334226392,1722844441573,-1600.86,0.00044931,60]
[334226393,1722844441615,-500.0,0.00044931,60]
[334226394,1722844441658,-2844.29,0.00044931,60]
[334226395,1722844441705,-11527.03,0.00044931,60]
[334226396,1722844441750,-500.0,0.00044931,60]
[334226397,1722844441798,-4113.34,0.00044931,60]
[334226398,1722844441849,-1215.01,0.00044931,60]
[334226399,1722844441898,-1182.78,0.00044931,60]
[334226400,1722844441946,-505.36188783,0.00044931,60]
[334226401,1722844441996,-7563.74,0.00044931,60]
[334226402,1722844442044,-885.81,0.00044931,60]
[334226403,1722844442091,-2342.88,0.00044931,60]
[334226404,1722844442138,-600.6,0.00044931,60]
[334226405,1722844442190,-533.58,0.00044931,60]
[334226406,1722844442236,-500.0,0.00044931,60]
[334226407,1722844442283,-2470.61,0.00044931,60]
[334226408,1722844442328,-1107.73,0.00044931,60]
[334226409,1722844442373,-3795.26,0.00044931,60]
[334226410,1722844442417,-623.25,0.00044931,60]
[334226411,1722844442465,-2147.31,0.00044931,60]
[334226412,1722844442511,-11685.73,0.00044931,60]
[334226413,1722844442553,-500.0,0.00044931,60]
[334226414,1722844442597,-658.81,0.00044931,60]
[334226415,1722844442642,-4333.16,0.00044931,60]
[334226416,1722844442684,-500.0,0.00044931,60]
[334226417,1722844442727,-500.0,0.00044931,60]
[334226418,1722844442770,-3360.52,0.00044931,60]
[334226419,1722844442815,-2451.49,0.00044931,60]
[334226420,1722844442861,-2337.27,0.00044931,60]
[334226421,1722844442907,-5093.48,0.00044931,60]
[334226422,1722844442954,-780.37,0.00044931,60]
[334226423,1722844442999,-1845.9,0.00044931,60]
[334226424,1722844443042,-1210.22,0.00044931,60]
[334226425,1722844443087,-500.0,0.00044931,60]
[334226426,1722844443132,-500.0,0.00044931,60]
[334226427,1722844443181,-2131.79,0.00044931,60]
[334226428,1722844443227,-1931.56,0.00044931,60]